lending/lending_fUSD_20250122
["ID","MTS","AMOUNT","RATE_DAILY","PERIOD"]
[350027171,1737577833909,-500.0,0.00021309,2]
[350027173,1737577833919,-153.26170881,0.00021309,2]
[350027175,1737577833929,-500.0,0.00021309,2]
[350027177,1737577833938,-500.0,0.00021309,2]
[350027179,1737577833948,-500.0,0.00021309,2]
[350027181,1737577833957,-500.0,0.00021309,2]
[350027183,1737577833967,-500.0,0.00021309,2]
[350027185,1737577833979,-500.0,0.00021309,2]
[350027187,1737577833989,-500.0,0.00021309,2]
[350027189,1737577833999,-500.0,0.00021309,2]
[350027191,1737577834008,-500.0,0.00021309,2]
[350027193,1737577834019,-500.0,0.00021309,2]
[350027195,1737577834029,-500.0,0.00021309,2]
[350027197,1737577834038,-500.0,0.00021309,2]
[350027199,1737577834048,-500.0,0.00021309,2]
[350027201,1737577834059,-500.0,0.00021309,2]
[350027203,1737577834069,-500.0,0.00021309,2]
[350027205,1737577834078,-500.0,0.00021309,2]
[350027206,1737577834087,-500.0,0.00021309,2]
[350027209,1737577834102,-602.24,0.00021309,2]
[350027211,1737577834112,-500.0,0.00021309,2]
[350027213,1737577834121,-500.0,0.00021309,2]
[350027214,1737577834130,-500.0,0.00021309,2]
[350027216,1737577834140,-500.0,0.00021309,2]
[350027217,1737577834149,-500.0,0.00021309,2]
[350027218,1737577834158,-500.0,0.00021309,2]
[350027219,1737577834167,-500.0,0.00021309,2]
[350027220,1737577834177,-500.0,0.00021309,2]
[350027221,1737577834186,-500.0,0.00021309,2]
[350027222,1737577834196,-500.0,0.00021309,2]
[350027223,1737577834205,-500.0,0.00021309,2]
[350027224,1737577834214,-500.0,0.00021309,2]
[350027225,1737577834223,-500.0,0.00021309,2]
[350027226,1737577834232,-500.0,0.00021309,2]
[350027227,1737577834242,-173.43188701,0.00021309,2]
[350027229,1737577834252,-500.0,0.0002131,2]
[350027230,1737577834262,-2315.8,0.0002131,2]
[350027232,1737577834271,-500.0,0.0002131,2]
[350027234,1737577834282,-486.81387,0.0002131,2]
[350027236,1737577834292,-825.39,0.0002131,2]
[350027238,1737577834302,-500.0,0.0002131,2]
[350027240,1737577834312,-500.0,0.0002131,2]
[350027242,1737577834322,-1740.23,0.0002131,2]
[350027244,1737577834332,-635.48,0.0002131,2]
[350027246,1737577834349,-500.0,0.0002131,2]
[350027248,1737577834360,-642.77319,0.0002131,2]
[350027249,1737577834370,-500.0,0.0002131,2]
[350027252,1737577834381,-156.348041,0.0002131,2]
[350027254,1737577834391,-500.0,0.0002131,2]
[350027255,1737577834402,-571.62,0.0002131,2]
[350027257,1737577834412,-769.14,0.0002131,2]
[350027259,1737577834423,-761.19,0.0002131,2]
[350027261,1737577834434,-500.0,0.0002131,2]
[350027264,1737577834444,-1670.66,0.0002131,2]
[350027266,1737577834454,-500.0,0.0002131,2]
[350027267,1737577834463,-1198.43,0.0002131,2]
[350027269,1737577834472,-1405.74,0.0002131,2]
[350027271,1737577834482,-500.0,0.0002131,2]
[350027273,1737577834491,-1073.99,0.0002131,2]
[350027275,1737577834501,-2604.82,0.0002131,2]
[350027277,1737577834510,-2002.49,0.0002131,2]
[350027279,1737577834520,-500.0,0.0002131,2]
[350027281,1737577834529,-1349.16,0.0002131,2]
[350027283,1737577834538,-2052.27,0.0002131,2]
[350027285,1737577834548,-807.37,0.0002131,2]
[350027287,1737577834557,-845.84,0.0002131,2]
[350027289,1737577834565,-520.35,0.0002131,2]
[350027291,1737577834575,-1647.52,0.0002131,2]
[350027293,1737577834584,-500.0,0.0002131,2]
[350027295,1737577834596,-792.27,0.0002131,2]
[350027297,1737577834606,-1180.99,0.0002131,2]
[350027299,1737577834615,-1172.57,0.0002131,2]
[350027301,1737577834625,-500.0,0.0002131,2]
[350027303,1737577834635,-2394.94,0.0002131,2]
[350027305,1737577834644,-500.0,0.0002131,2]
[350027307,1737577834653,-539.77,0.0002131,2]
[350027309,1737577834662,-907.27,0.0002131,2]
[350027311,1737577834671,-1099.99,0.0002131,2]
[350027313,1737577834680,-1626.38,0.0002131,2]
[350027315,1737577834689,-500.0,0.0002131,2]
[350027317,1737577834698,-525.82,0.0002131,2]
[350027319,1737577834708,-1198.02,0.0002131,2]
[350027321,1737577834718,-696.81,0.0002131,2]
[350027323,1737577834727,-500.0,0.0002131,2]
[350027325,1737577834736,-604.01,0.0002131,2]
[350027327,1737577834745,-500.0,0.0002131,2]
[350027329,1737577834754,-1092.65,0.0002131,2]
[350027331,1737577834763,-500.0,0.0002131,2]
[350027333,1737577834772,-500.0,0.0002131,2]
[350027335,1737577834782,-500.0,0.0002131,2]
[350027337,1737577834792,-676.28,0.0002131,2]
[350027339,1737577834801,-1894.19,0.0002131,2]
[350027341,1737577834810,-959.79,0.0002131,2]
[350027343,1737577834819,-500.0,0.0002131,2]
[350027345,1737577834828,-500.0,0.0002131,2]
[350027347,1737577834837,-500.0,0.0002131,2]
[350027349,1737577834851,-500.0,0.0002131,2]
[350027351,1737577834860,-1323.2,0.0002131,2]
[350027353,1737577834869,-500.0,0.00021311,2]
[350027355,1737577834878,-500.0,0.00021311,2]
[350027357,1737577834887,-500.0,0.00021311,2]
[350027359,1737577834896,-500.0,0.00021311,2]
[350027361,1737577834906,-500.0,0.00021311,2]
[350027363,1737577834915,-500.0,0.00021311,2]
[350027365,1737577834924,-500.0,0.00021311,2]
[350027367,1737577834933,-500.0,0.00021311,2]
[350027369,1737577834943,-500.0,0.00021311,2]
[350027371,1737577834952,-500.0,0.00021311,2]
[350027373,1737577834961,-373.8232748,0.00021311,2]
[350027375,1737577834971,-503.7200035,0.00021311,2]
[350027377,1737577834982,-500.0,0.00021311,2]
[350027379,1737577834991,-500.0,0.00021311,2]
[350027380,1737577835000,-500.0,0.00021311,2]
[350027382,1737577835011,-500.0,0.00021311,2]
[350027384,1737577835021,-500.0,0.00021311,2]
[350027386,1737577835030,-500.0,0.00021311,2]
[350027388,1737577835039,-500.0,0.00021311,2]
[350027390,1737577835048,-500.0,0.00021311,2]
[350027392,1737577835060,-500.0,0.00021311,2]
[350027394,1737577835070,-500.0,0.00021311,2]
[350027396,1737577835079,-500.0,0.00021311,2]
[350027398,1737577835088,-560.05398455,0.00021311,2]
[350027400,1737577835101,-500.0,0.00021311,2]
[350027402,1737577835110,-589.2622914,0.00021311,2]
[350027405,1737577835119,-500.0,0.00021311,2]
[350027407,1737577835128,-500.0,0.00021311,2]
[350027409,1737577835137,-500.0,0.00021311,2]
[350027410,1737577835147,-500.0,0.00021311,2]
[350027413,1737577835156,-500.0,0.00021311,2]
[350027414,1737577835166,-500.0,0.00021311,2]
[350027417,1737577835175,-500.0,0.00021311,2]
[350027418,1737577835184,-500.0,0.00021311,2]
[350027421,1737577835193,-500.0,0.00021311,2]
[350027422,1737577835203,-500.0,0.00021311,2]
[350027424,1737577835212,-500.0,0.00021311,2]
[350027426,1737577835222,-500.0,0.00021311,2]
[350027428,1737577835231,-500.0,0.00021311,2]
[350027430,1737577835241,-500.0,0.00021311,2]
[350027432,1737577835250,-624.83,0.00021311,2]
[350027434,1737577835259,-500.0,0.00021311,2]
[350027437,1737577835269,-500.0,0.00021311,2]
[350027439,1737577835279,-500.0,0.00021311,2]
[350027441,1737577835288,-500.0,0.00021311,2]
[350027443,1737577835297,-500.0,0.00021311,2]
[350027445,1737577835307,-516.75959952,0.00021311,2]
[350027447,1737577835318,-500.0,0.00021311,2]
[350027449,1737577835327,-500.0,0.00021311,2]
[350027451,1737577835336,-500.0,0.00021311,2]
[350027464,1737577835492,-500.0,0.00021311,2]
[350027465,1737577835503,-500.0,0.00021311,2]
[350027466,1737577835513,-500.0,0.00021311,2]
[350027467,1737577835522,-500.0,0.00021311,2]
[350027468,1737577835532,-500.0,0.00021311,2]
[350027469,1737577835542,-500.0,0.00021311,2]
[350027470,1737577835551,-500.0,0.00021311,2]
[350027471,1737577835561,-500.0,0.00021311,2]
[350027472,1737577835570,-500.0,0.00021311,2]
[350027473,1737577835580,-500.0,0.00021311,2]
[350027474,1737577835589,-500.0,0.00021311,2]
[350027475,1737577835602,-500.0,0.00021311,2]
[350027476,1737577835612,-500.0,0.00021311,2]
[350027477,1737577835622,-500.0,0.00021311,2]
[350027478,1737577835631,-500.0,0.00021311,2]
[350027479,1737577835641,-500.0,0.00021311,2]
[350027480,1737577835650,-500.0,0.00021311,2]
[350027481,1737577835660,-500.0,0.00021311,2]
[350027482,1737577835669,-648.26,0.00021311,2]
[350027483,1737577835679,-500.0,0.00021311,2]
[350027484,1737577835688,-500.0,0.00021311,2]
[350027485,1737577835698,-500.0,0.00021311,2]
[350027486,1737577835707,-500.0,0.00021311,2]
[350027487,1737577835716,-500.0,0.00021311,2]
[350027488,1737577835725,-500.0,0.00021311,2]
[350027489,1737577835735,-550.0,0.00021311,2]
[350027490,1737577835744,-500.0,0.00021311,2]
[350027491,1737577835754,-500.0,0.00021311,2]
[350027492,1737577835763,-500.0,0.00021311,2]
[350027493,1737577835772,-500.0,0.00021311,2]
[350027494,1737577835782,-555.6,0.00021311,2]
[350027495,1737577835791,-500.0,0.00021311,2]
[350027496,1737577835801,-500.0,0.00021311,2]
[350027497,1737577835811,-500.0,0.00021311,2]
[350027498,1737577835820,-500.0,0.00021311,2]
[350027499,1737577835829,-500.0,0.00021311,2]
[350027500,1737577835845,-500.0,0.00021311,2]
[350027501,1737577835854,-500.0,0.00021311,2]
[350027502,1737577835864,-500.0,0.00021311,2]
[350027503,1737577835873,-500.0,0.00021311,2]
[350027504,1737577835884,-578.97,0.00021311,2]
[350027505,1737577835893,-503.11,0.00021311,2]
[350027506,1737577835902,-500.0,0.00021311,2]
[350027507,1737577835912,-500.0,0.00021311,2]
[350027508,1737577835921,-500.0,0.00021311,2]
[350027509,1737577835930,-500.0,0.00021311,2]
[350027510,1737577835939,-500.0,0.00021311,2]
[350027511,1737577835949,-500.0,0.00021311,2]
[350027512,1737577835958,-500.0,0.00021311,2]
[350027513,1737577835967,-500.0,0.00021311,2]
[350027514,1737577835980,-500.0,0.00021311,2]
[350027515,1737577835989,-500.0,0.00021311,2]
[350027516,1737577835999,-3385.51,0.00021311,2]
[350027517,1737577836008,-500.0,0.00021311,2]
[350027518,1737577836018,-500.0,0.00021311,2]
[350027519,1737577836028,-500.0,0.00021311,2]
[350027520,1737577836037,-500.0,0.00021311,2]
[350027521,1737577836047,-500.0,0.00021311,2]
[350027522,1737577836057,-500.0,0.00021311,2]
[350027523,1737577836066,-500.0,0.00021311,2]
[350027524,1737577836075,-500.0,0.00021311,2]
[350027525,1737577836084,-2518.43,0.00021311,2]
[350027526,1737577836097,-500.0,0.00021311,2]
[350027527,1737577836106,-500.0,0.00021311,2]
[350027528,1737577836115,-500.0,0.00021311,2]
[350027529,1737577836124,-500.0,0.00021311,2]
[350027530,1737577836133,-500.0,0.00021311,2]
[350027531,1737577836143,-500.0,0.00021311,2]
[350027532,1737577836152,-500.0,0.00021311,2]
[350027533,1737577836161,-500.0,0.00021311,2]
[350027534,1737577836170,-500.0,0.00021311,2]
[350027535,1737577836179,-841.72,0.00021311,2]
[350027536,1737577836189,-500.0,0.00021311,2]
[350027537,1737577836198,-1999.0,0.00021311,2]
[350027538,1737577836207,-1977.0,0.00021311,2]
[350027539,1737577836216,-500.0,0.00021311,2]
[350027540,1737577836226,-500.0,0.00021311,2]
[350027541,1737577836235,-500.0,0.00021311,2]
[350027542,1737577836244,-500.0,0.00021311,2]
[350027543,1737577836254,-500.0,0.00021311,2]
[350027544,1737577836263,-853.61,0.00021311,2]
[350027545,1737577836273,-500.0,0.00021311,2]
[350027546,1737577836282,-500.0,0.00021311,2]
[350027547,1737577836291,-500.0,0.00021311,2]
[350027548,1737577836300,-500.0,0.00021311,2]
[350027549,1737577836310,-500.0,0.00021311,2]
[350027550,1737577836320,-500.0,0.00021311,2]
[350027551,1737577836329,-500.0,0.00021311,2]
[350027552,1737577836338,-500.0,0.00021311,2]
[350027553,1737577836351,-561.68503157,0.00021312,2]
[350027554,1737577836360,-375.27828906,0.00021312,2]
[350027555,1737577836369,-500.0,0.00021312,2]
[350027556,1737577836379,-500.0,0.00021312,2]
[350027557,1737577836388,-500.0,0.00021312,2]
[350027558,1737577836397,-500.0,0.00021312,2]
[350027559,1737577836407,-346.98461568,0.00021312,2]
[350027560,1737577836416,-500.0,0.00021312,2]
[350027561,1737577836426,-446.02850379,0.00021312,2]
[350027562,1737577836435,-500.0,0.00021312,2]
[350027563,1737577836445,-500.0,0.00021312,2]
[350027564,1737577836454,-500.0,0.00021312,2]
[350027565,1737577836464,-500.0,0.00021312,2]
[350027566,1737577836474,-500.0,0.00021312,2]
[350027567,1737577836484,-500.0,0.00021312,2]
[350027568,1737577836493,-500.0,0.00021312,2]
[350027569,1737577836503,-500.0,0.00021312,2]
[350027570,1737577836512,-500.0,0.00021312,2]
[350027571,1737577836522,-500.0,0.00021312,2]
[350027572,1737577836531,-500.0,0.00021312,2]
[350027573,1737577836541,-500.0,0.00021312,2]
[350027574,1737577836550,-500.0,0.00021312,2]
[350027575,1737577836559,-500.0,0.00021312,2]
[350027576,1737577836569,-500.0,0.00021312,2]
[350027577,1737577836578,-500.0,0.00021312,2]
[350027578,1737577836587,-500.0,0.00021312,2]
[350027579,1737577836600,-500.0,0.00021312,2]
[350027580,1737577836609,-500.0,0.00021312,2]
[350027581,1737577836619,-500.0,0.00021312,2]
[350027582,1737577836628,-500.0,0.00021312,2]
[350027583,1737577836638,-500.0,0.00021312,2]
[350027584,1737577836648,-500.0,0.00021312,2]
[350027585,1737577836657,-500.0,0.00021312,2]
[350027586,1737577836667,-500.0,0.00021312,2]
[350027587,1737577836676,-500.0,0.00021312,2]
[350027588,1737577836686,-500.0,0.00021312,2]
[350027589,1737577836695,-500.0,0.00021312,2]
[350027590,1737577836704,-500.0,0.00021312,2]
[350027591,1737577836713,-500.0,0.00021312,2]
[350027592,1737577836722,-500.0,0.00021312,2]
[350027593,1737577836731,-644.99,0.00021312,2]
[350027594,1737577836741,-565.77,0.00021312,2]
[350027595,1737577836750,-1600.05,0.00021312,2]
[350027596,1737577836759,-500.0,0.00021312,2]
[350027597,1737577836768,-1161.89,0.00021312,2]
[350027598,1737577836778,-500.0,0.00021312,2]
[350027599,1737577836788,-1954.76,0.00021312,2]
[350027600,1737577836799,-500.0,0.00021312,2]
[350027601,1737577836808,-915.73,0.00021312,2]
[350027602,1737577836817,-1286.43,0.00021312,2]
[350027603,1737577836826,-500.0,0.00021312,2]
[350027604,1737577836835,-500.0,0.00021312,2]
[350027605,1737577836846,-846.86,0.00021312,2]
[350027606,1737577836855,-646.2,0.00021312,2]
[350027607,1737577836864,-500.0,0.00021312,2]
[350027608,1737577836874,-500.0,0.00021312,2]
[350027609,1737577836883,-1795.49,0.00021312,2]
[350027610,1737577836892,-662.31,0.00021312,2]
[350027611,1737577836901,-1060.55,0.00021312,2]
[350027612,1737577836910,-500.0,0.00021312,2]
[350027613,1737577836919,-510.52,0.00021312,2]
[350027614,1737577836928,-500.0,0.00021312,2]
[350027615,1737577836937,-500.0,0.00021312,2]
[350027616,1737577836947,-500.0,0.00021312,2]
[350027617,1737577836956,-500.0,0.00021312,2]
[350027618,1737577836965,-500.0,0.00021312,2]
[350027619,1737577836975,-561.74,0.00021312,2]
[350027620,1737577836987,-500.0,0.00021312,2]
[350027621,1737577836996,-500.0,0.00021312,2]
[350027622,1737577837005,-653.29,0.00021312,2]
[350027623,1737577837015,-708.16,0.00021312,2]
[350027624,1737577837025,-3426.76777531,0.00021364,2]
[350027625,1737577837035,-502.13754415,0.00021373,2]
[350027626,1737577837046,-1638.90300238,0.00021388,2]
[350027627,1737577837055,-946.62,0.000214,2]
[350027628,1737577837066,-321.0,0.000214,2]
[350027629,1737577837075,-180.68355716,0.000214,2]
[350027630,1737577837084,-559.0,0.000214,2]
[350027631,1737577837097,-709.93533867,0.000214,2]
[350027632,1737577837106,-8993.45768069,0.00021411,2]
[350027633,1737577837116,-3426.76777531,0.00021441,2]
[350027634,1737577837125,-150.0,0.00021483,2]
[350027635,1737577837134,-268.932,0.00021483,2]
[350027636,1737577837143,-153.56,0.0002149,2]
[350027637,1737577837152,-813.92,0.00021499,2]
[350027638,1737577837161,-500.0,0.00021499,2]
[350027639,1737577837171,-500.0,0.00021499,2]
[350027640,1737577837180,-780.99,0.00021499,2]
[350027641,1737577837189,-1792.35,0.00021499,2]
[350027642,1737577837199,-3371.14,0.00021499,2]
[350027643,1737577837208,-866.77,0.00021499,2]
[350027644,1737577837218,-819.23,0.00021499,2]
[350027645,1737577837227,-1554.4,0.00021499,2]
[350027646,1737577837236,-500.0,0.00021499,2]
[350027647,1737577837245,-858.84,0.00021499,2]
[350027648,1737577837255,-500.0,0.00021499,2]
[350027649,1737577837263,-500.0,0.00021499,2]
[350027650,1737577837273,-500.0,0.00021499,2]
[350027651,1737577837283,-500.0,0.00021499,2]
[350027652,1737577837292,-1080.89,0.00021499,2]
[350027653,1737577837301,-500.0,0.00021499,2]
[350027654,1737577837310,-1000.0,0.00021499,2]
[350027655,1737577837319,-945.81,0.00021499,2]
[350027656,1737577837328,-500.0,0.00021499,2]
[350027657,1737577837337,-165.23,0.00021499,2]
[350027658,1737577837349,-500.0,0.00021499,2]
[350027659,1737577837358,-500.0,0.00021499,2]
[350027660,1737577837368,-1387.69,0.00021499,2]
[350027661,1737577837376,-1466.46,0.00021499,2]
[350027662,1737577837385,-1744.0,0.000215,2]
[350027663,1737577837395,-97242.83259361,0.000215,15]
[350027664,1737577837438,-614.74399974,0.000215,15]
[350027665,1737577837473,-25350.0,0.000215,15]
[350027666,1737577837487,-1181.1800004,0.000215,15]
[350027667,1737577838369,-500.0,0.00021287,2]
[350027668,1737577838379,-500.0,0.00021287,2]
[350027669,1737577838388,-1421.11,0.0002131,2]
[350027670,1737577838397,-500.0,0.00021311,2]
[350027671,1737577838406,-13431.42595,0.000215,15]
[350027672,1737577838417,-656.68881961,0.000215,15]
[350027673,1737577838428,-4037.57747779,0.000215,15]
[350027674,1737577838439,-46588.35664106,0.000215,15]
[350027675,1737577838465,-4946.48532655,0.000215,15]
[350027676,1737577838523,-1001.2,0.000215,15]
[350027677,1737577838535,-23504.73583314,0.000215,15]
[350027678,1737577838546,-694.49774153,0.000215,15]
[350027679,1737577838579,-617.06029197,0.000215,15]
[350027682,1737577840369,-1000.0,0.00021212,2]
[350027683,1737577840427,-367.04790114,0.00021212,2]
[350027684,1737577840544,-827.59180666,0.00021212,2]
[350027685,1737577840556,-304.166235,0.00021212,2]
[350027686,1737577840598,-222.7990572,0.00021212,2]
[350027687,1737577840608,-457.0522264,0.00021287,2]
[350027688,1737577840621,-42.9477736,0.00021287,2]
[350027689,1737577840631,-491.0947941,0.00021312,2]
[350027690,1737577840643,-416.8284995,0.00021312,2]
[350027691,1737577840655,-2322.7467064,0.00021312,2]
[350027692,1737577840664,-26054.99607727,0.000215,15]
[350027693,1737577840709,-146.25618732,0.000215,15]
[350027694,1737577840721,-83870.34192567,0.000215,15]
[350027695,1737577840736,-755.799995,0.000215,15]
[350027696,1737577840747,-3308.7982594,0.000215,15]
[350027697,1737577840758,-501.85,0.000215,15]
[350027698,1737577840769,-481.9891938,0.000215,15]
[350027699,1737577840780,-329.1100001,0.000215,15]
[350027712,1737577843368,-500.0,0.00021287,2]
[350027713,1737577843377,-357.15118505,0.00021287,2]
[350027714,1737577843387,-136.50194288,0.0002131,2]
[350027715,1737577843399,-654.49805712,0.0002131,2]
[350027716,1737577843408,-542.19,0.0002131,2]
[350027717,1737577843418,-2138.09944288,0.000215,15]
[350027718,1737577843532,-500.0,0.00021311,2]
[350027719,1737577843542,-4040.0,0.000215,15]
[350027720,1737577843587,-101654.72982767,0.000215,15]
[350027721,1737577843599,-12674.517128,0.000215,15]
[350027722,1737577843610,-494.14,0.000215,15]
[350027723,1737577843643,-1179.56290355,0.000215,15]
[350027742,1737577846518,-303.999994,0.00021287,2]
[350027743,1737577846528,-1568.0,0.000215,2]
[350027744,1737577846537,-4768.22833528,0.000215,15]
[350027745,1737577846634,-6540.26182,0.000215,15]
[350027747,1737577852349,288.09,0.00012,2]
[350027748,1737578299388,158.28,0.00010137,2]
[350027753,1737579031501,-550.0,0.00015,2]
[350027754,1737579031511,-5.4799713,0.000164,2]
[350027755,1737579031522,-161.18669536,0.000164,2]
[350027756,1737579031532,-540.07585071,0.000165,2]
[350027757,1737579031544,-1554.92414929,0.000165,2]
[350027758,1737579031554,-942.12885871,0.000169,2]
[350027759,1737579031754,-1176.2828577,0.000169,2]
[350027760,1737579031763,-600.0,0.00017,2]
[350027761,1737579031772,-4648.58820347,0.00017,2]
[350027762,1737579031783,-45351.41179653,0.00017,2]
[350027763,1737579031793,-1106.91,0.00018041,2]
[350027764,1737579031803,-500.0,0.00018548,2]
[350027765,1737579031812,-500.0,0.00019,2]
[350027766,1737579031821,-1500.0,0.00019664,2]
[350027767,1737579031830,-187.02,0.00019803,2]
[350027768,1737579031839,-207.01332181,0.000199,2]
[350027769,1737579031849,-187.72063051,0.00019917,3]
[350027770,1737579031858,-150.0,0.00019999,2]
[350027771,1737579031867,-39202.84068029,0.0002,3]
[350027772,1737579031879,-30195.15931971,0.0002,3]
[350027773,1737579031888,-50224.08588788,0.0002,2]
[350027774,1737579031899,-1891.68000027,0.0002,2]
[350027775,1737579031919,-13908.38908202,0.0002,2]
[350027776,1737579031930,-1439.52615582,0.0002,2]
[350027777,1737579031939,-344.56805197,0.00020017,2]
[350027778,1737579031950,-1983.01705708,0.00020017,2]
[350027779,1737579031961,-2168.55489095,0.00020017,2]
[350027780,1737579031970,-250.0,0.00020153,2]
[350027781,1737579031980,-172.0,0.00020304,2]
[350027782,1737579031989,-1106.91,0.00020305,2]
[350027783,1737579031998,-507.52,0.00020337,2]
[350027785,1737579032007,-1000.0,0.0002045,2]
[350027786,1737579032016,-2110.0,0.000205,2]
[350027788,1737579032025,-200.0,0.00020537,2]
[350027790,1737579032034,-152.0,0.00020603,3]
[350027792,1737579032043,-500.0,0.0002074,2]
[350027794,1737579032054,-1250.90559962,0.00020785,2]
[350027796,1737579032063,-1932.44202881,0.00020789,2]
[350027798,1737579032072,-1416.05279814,0.0002079,2]
[350027800,1737579032081,-5953.88256102,0.0002079,2]
[350027802,1737579032090,-1416.05279814,0.00020792,2]
[350027804,1737579032099,-690.27637378,0.00020804,2]
[350027806,1737579032109,-1288.29468588,0.00020806,2]
[350027808,1737579032118,-1416.05279814,0.0002082,2]
[350027810,1737579032127,-1288.29468588,0.0002082,2]
[350027812,1737579032135,-1288.29468588,0.00020821,2]
[350027814,1737579032145,-690.27637378,0.00020822,2]
[350027816,1737579032154,-690.27637378,0.00020823,2]
[350027818,1737579032163,-690.27637378,0.00020824,2]
[350027820,1737579032173,-1250.90559962,0.00020826,2]
[350027822,1737579032182,-1250.90559962,0.00020828,2]
[350027824,1737579032191,-1932.44202881,0.00020829,2]
[350027826,1737579032200,-5953.88256102,0.00020831,2]
[350027828,1737579032209,-973.61970634,0.00020831,2]
[350027830,1737579032219,-1416.05279814,0.00020835,2]
[350027832,1737579032228,-1932.44202881,0.00020839,2]
[350027834,1737579032237,-1932.44202881,0.00020842,2]
[350027836,1737579032247,-973.61970634,0.0002085,2]
[350027838,1737579032256,-1416.05279814,0.00020852,2]
[350027840,1737579032265,-200.0,0.00020859,2]
[350027841,1737579032274,-1250.90559962,0.00020862,2]
[350027843,1737579032284,-5953.88256102,0.00020867,2]
[350027846,1737579032294,-1932.44202881,0.0002089,2]
[350027848,1737579032304,-973.61970634,0.00020892,2]
[350027849,1737579032314,-5953.88256102,0.00020905,2]
[350027852,1737579032323,-1250.90559962,0.00020912,2]
[350027873,1737579032332,-1288.29468588,0.00020928,2]
[350027875,1737579032528,-200.0,0.0002093,2]
[350027877,1737579032537,-973.61970634,0.00020933,2]
[350027879,1737579032547,-973.61970634,0.00020934,2]
[350027881,1737579032557,-1288.29468588,0.00020938,2]
[350027883,1737579032566,-690.27637378,0.00020938,2]
[350027885,1737579032575,-5953.88256102,0.0002094,2]
[350027887,1737579032584,-1259.783,0.00020965,2]
[350027889,1737579032593,-1702.1308,0.00020975,2]
[350027891,1737579032603,-2110.0,0.00021,2]
[350027893,1737579032612,-45436.0,0.00021075,3]
[350027895,1737579032621,-187.02,0.00021123,2]
[350027897,1737579032630,-3597.38307233,0.00021186,2]
[350027899,1737579032639,-2056.06066524,0.00021187,2]
[350027901,1737579032648,-1000.0,0.00021208,2]
[350027903,1737579032658,-1396.4435,0.0002121,2]
[350027905,1737579032667,-2056.38563681,0.00021265,2]
[350027907,1737579032678,-1540.99743546,0.00021265,2]
[350027909,1737579032688,-236.80837216,0.00021266,2]
[350027910,1737579032701,-1819.25229302,0.00021266,2]
[350027911,1737579032710,-815.68,0.00021285,2]
[350027912,1737579032719,-500.0,0.00021285,2]
[350027914,1737579032728,-500.0,0.00021285,2]
[350027916,1737579032737,-1177.02,0.00021285,2]
[350027918,1737579032746,-931.07,0.00021285,2]
[350027920,1737579032755,-500.0,0.00021285,2]
[350027922,1737579032763,-503.91,0.00021285,2]
[350027924,1737579032773,-1220.48,0.00021285,2]
[350027926,1737579032782,-578.85,0.00021285,2]
[350027928,1737579032791,-500.0,0.00021285,2]
[350027929,1737579032800,-1953.02,0.00021285,2]
[350027931,1737579032809,-500.0,0.00021285,2]
[350027933,1737579032818,-500.0,0.00021285,2]
[350027935,1737579032827,-500.0,0.00021285,2]